bitfinex/quotes_BTCUSD_20241028
["timestamp","ask_amount","ask_price","bid_price","bid_amount"]
[1730119349421,0.00204,68979.0,68978.0,0.03608]
[1730119349631,0.0084395,68979.0,68978.0,0.03608]
[1730119349871,0.00204,68979.0,68978.0,0.03608]
[1730119350080,0.0084395,68979.0,68978.0,0.03608]
[1730119350297,0.00204,68979.0,68978.0,0.03608]
[1730119350455,0.0084395,68979.0,68978.0,0.03608]
[1730119350678,0.00204,68979.0,68978.0,0.03608]
[1730119351454,0.00844037,68979.0,68978.0,0.03608]
[1730119351654,0.00204,68979.0,68978.0,0.03608]
[1730119351855,0.00843962,68979.0,68978.0,0.03608]
[1730119352100,0.147011,68979.0,68978.0,0.03116]
[1730119352441,0.15341062,68979.0,68978.0,0.028]
[1730119353207,0.15241062,68979.0,68978.0,0.014]
[1730119353606,0.144984,68973.0,68972.0,0.006655]
[1730119354055,0.15138282,68973.0,68972.0,0.006655]
[1730119354811,0.15238282,68973.0,68972.0,0.020655]
[1730119355019,0.15138282,68973.0,68972.0,0.006655]
[1730119355455,0.15238282,68973.0,68972.0,0.020655]
[1730119357514,0.15238282,68973.0,68972.0,0.024655]
[1730119359233,0.17509928,68973.0,68972.0,0.024655]
[1730119359431,0.16870046,68973.0,68972.0,0.024655]
[1730119364637,0.16870046,68973.0,68972.0,0.018]
[1730119366731,0.145984,68973.0,68972.0,0.018]
[1730119368212,0.60136541,68973.0,68972.0,0.018]
[1730119368423,0.77189034,68973.0,68972.0,0.018]
[1730119368724,0.85735642,68973.0,68972.0,0.018]
[1730119368959,0.87905463,68973.0,68972.0,0.018]
[1730119369204,0.81396,68973.0,68972.0,0.014]
[1730119369421,0.77194724,68973.0,68972.0,0.014]
[1730119369635,0.77194724,68973.0,68971.0,0.001648]
[1730119369636,0.144986,68972.0,68971.0,0.001648]
[1730119369859,0.15856131,68972.0,68971.0,0.001648]
[1730119370331,0.01356815,68972.0,68971.0,0.009728]
[1730119370571,0.01356784,68977.0,68975.0,0.00316]
[1730119370793,0.144974,68978.0,68977.0,0.00316]
[1730119371461,0.02271592,68978.0,68977.0,0.00808]
[1730119371668,0.02271592,68978.0,68977.0,0.153055]
[1730119371894,0.02271592,68978.0,68977.0,0.30355881]
[1730119372113,0.000864,68979.0,68978.0,0.00316]
[1730119372337,0.000864,68979.0,68978.0,0.48755681]
[1730119372539,0.000864,68979.0,68978.0,0.66723242]
[1730119372752,0.000864,68979.0,68978.0,0.49755681]
[1730119372974,0.000864,68979.0,68978.0,0.48755681]
[1730119373422,0.001864,68979.0,68978.0,0.49655681]
[1730119373637,0.001864,68979.0,68978.0,0.30855681]
[1730119373853,0.001864,68979.0,68978.0,0.16358381]
[1730119374072,0.001864,68979.0,68978.0,0.30855681]
[1730119374291,0.002864,68979.0,68978.0,0.32255681]
[1730119374501,0.002864,68979.0,68978.0,0.30855681]
[1730119374502,0.001864,68979.0,68978.0,0.30855681]
[1730119374737,0.001864,68979.0,68978.0,0.33655681]
[1730119374738,0.002864,68979.0,68978.0,0.33655681]
[1730119374947,0.003864,68979.0,68978.0,0.33655681]
[1730119375150,0.002864,68979.0,68978.0,0.32255681]
[1730119375612,0.003864,68979.0,68978.0,0.33655681]
[1730119376059,0.003864,68979.0,68978.0,0.19158381]
[1730119376911,0.003864,68979.0,68978.0,0.18658381]
[1730119377129,0.003864,68979.0,68978.0,0.19158381]
[1730119377338,0.003864,68979.0,68978.0,0.03608]
[1730119377574,0.003864,68979.0,68978.0,0.04108]
[1730119378261,0.003864,68979.0,68978.0,0.33155681]
[1730119378489,0.003864,68979.0,68978.0,0.58823242]
[1730119378895,0.003864,68979.0,68978.0,0.58323242]
[1730119379076,0.003864,68979.0,68978.0,0.58823242]
[1730119381199,0.003864,68979.0,68978.0,0.59323242]
[1730119381406,0.003864,68979.0,68978.0,0.59823242]
[1730119383708,0.003864,68979.0,68978.0,0.59323242]
[1730119383929,0.003864,68979.0,68978.0,0.58823242]
[1730119393490,0.003864,68979.0,68978.0,0.50623242]
[1730119393740,0.003864,68979.0,68978.0,0.33155681]
[1730119396495,0.148835,68979.0,68978.0,0.03608]
[1730119396914,0.003864,68979.0,68978.0,0.03608]
[1730119397293,0.002864,68979.0,68978.0,0.02208]
[1730119397498,0.000864,68979.0,68978.0,0.00808]
[1730119397709,0.001864,68979.0,68978.0,0.02108]
[1730119397909,0.002864,68979.0,68978.0,0.03508]
[1730119398245,0.001864,68979.0,68978.0,0.02208]
[1730119398624,0.146835,68979.0,68978.0,0.02208]
[1730119398846,0.001864,68979.0,68978.0,0.02208]
[1730119399506,0.002864,68979.0,68978.0,0.03008]
[1730119401118,0.002864,68979.0,68978.0,0.175053]
[1730119401770,0.002864,68979.0,68978.0,0.03008]
[1730119402187,0.002864,68979.0,68978.0,0.175053]
[1730119402937,0.002864,68979.0,68978.0,0.49523242]
[1730119403153,0.002864,68979.0,68978.0,0.49985647]
[1730119408176,0.002864,68979.0,68978.0,0.49985585]
[1730119409040,0.002864,68979.0,68978.0,0.58295585]
[1730119409225,0.002864,68979.0,68978.0,0.59795585]
[1730119409871,0.002864,68979.0,68978.0,0.59995585]
[1730119410077,0.002864,68979.0,68978.0,0.50485485]
[1730119410308,0.000864,68979.0,68978.0,0.48285485]
[1730119410519,0.001864,68979.0,68978.0,0.49685485]
[1730119410732,0.002864,68979.0,68978.0,0.50985485]
[1730119410948,0.002864,68979.0,68978.0,0.59295485]
[1730119411207,0.002864,68979.0,68978.0,0.60495485]
[1730119411872,0.002864,68979.0,68978.0,0.92998429]
[1730119412089,0.002864,68979.0,68978.0,0.77083237]
[1730119412306,0.002864,68979.0,68978.0,1.03496994]
[1730119412661,0.000824,69000.0,68999.0,0.00808]
[1730119412863,0.000824,69000.0,68999.0,0.47318842]
[1730119414146,0.000824,69000.0,68999.0,0.48218842]
[1730119415504,0.000824,69000.0,68999.0,0.47818842]
[1730119415710,0.000824,69000.0,68999.0,0.49518842]
[1730119416132,0.000824,69000.0,68999.0,0.47818842]
[1730119416362,0.000824,69000.0,68999.0,0.49218842]
[1730119416556,0.000824,69000.0,68999.0,0.50118842]
[1730119418173,0.000824,69000.0,68999.0,0.59298842]
[1730119418380,0.000824,69000.0,68999.0,0.86926403]
[1730119418816,0.000824,69000.0,68999.0,0.69958842]
[1730119419026,0.000824,69000.0,68999.0,0.84626403]
[1730119419245,0.000824,69000.0,68999.0,0.88935821]
[1730119419467,0.000824,69000.0,68999.0,0.86486231]
[1730119419692,0.000824,69000.0,68999.0,0.86026403]
[1730119419909,0.000824,69000.0,68999.0,0.86486224]
[1730119420122,0.000824,69000.0,68999.0,0.93246018]
[1730119420351,0.000824,69000.0,68999.0,0.88948909]
[1730119420556,0.000824,69000.0,68999.0,0.90348909]
[1730119420776,0.000824,69000.0,68999.0,0.73381348]
[1730119421401,0.000824,69000.0,68999.0,0.71981348]
[1730119421585,0.000824,69000.0,68999.0,0.73381348]
[1730119422758,0.000824,69000.0,68999.0,0.90348909]
[1730119422961,0.000824,69000.0,68999.0,0.73381348]
[1730119423228,0.000824,69000.0,68999.0,0.72921527]
[1730119423395,0.000824,69000.0,68999.0,0.73380601]
[1730119423594,0.000824,69000.0,68999.0,0.72117916]
[1730119424348,0.000824,69000.0,68999.0,0.71658842]
[1730119424541,0.000824,69000.0,68999.0,0.72117745]
[1730119425206,0.000824,69000.0,68999.0,0.71658842]
[1730119425828,0.000824,69000.0,68999.0,0.72117722]
[1730119426039,0.000824,69000.0,68999.0,0.61657722]
[1730119426261,0.000824,69000.0,68999.0,0.53018842]
[1730119427502,0.000824,69000.0,68999.0,0.34235281]
[1730119427704,0.000824,69000.0,68999.0,0.35051281]
[1730119428131,0.000824,69000.0,68999.0,0.52018842]
[1730119428352,0.000824,69000.0,68999.0,0.49218842]
[1730119428757,0.000824,69000.0,68999.0,0.51118842]
[1730119428959,0.000824,69000.0,68999.0,0.48818842]
[1730119429369,0.000824,69000.0,68999.0,0.51618842]
[1730119429573,0.000824,69000.0,68999.0,0.50218842]
[1730119429833,0.000824,69000.0,68999.0,0.50798742]
[1730119430048,0.000824,69000.0,68999.0,0.52198742]
[1730119430522,0.000824,69000.0,68999.0,0.50798742]
[1730119430954,0.000824,69000.0,68999.0,0.51198742]
[1730119431344,0.000824,69000.0,68999.0,0.52198742]
[1730119436290,0.000824,69000.0,68999.0,0.51698742]
[1730119436715,0.000824,69000.0,68999.0,0.33731181]
[1730119436898,0.000824,69000.0,68999.0,0.51198742]
[1730119440603,0.000824,69000.0,68999.0,0.51659643]
[1730119444808,0.000824,69000.0,68999.0,0.34692082]
[1730119445276,0.077224,69000.0,68999.0,0.34692082]
[1730119445744,0.000824,69000.0,68999.0,0.34692082]
[1730119445961,0.000824,69000.0,68999.0,0.51659643]
[1730119449508,0.000824,69000.0,68999.0,0.52359643]
[1730119449726,0.000824,69000.0,68999.0,0.52159643]
[1730119449936,0.000824,69000.0,68999.0,0.52659643]
[1730119451263,0.000824,69000.0,68999.0,0.52198742]
[1730119451867,0.000824,69000.0,68999.0,0.52660647]
[1730119452880,0.000824,69000.0,68999.0,0.51660647]
[1730119453549,0.000824,69000.0,68999.0,0.52660647]
[1730119453758,0.000824,69000.0,68999.0,0.51160647]
[1730119453995,0.000824,69000.0,68999.0,0.34193086]
[1730119454210,0.077224,69000.0,68999.0,0.33151281]
[1730119454416,0.077224,69000.0,68999.0,0.33613576]
[1730119454650,0.077224,69000.0,68999.0,0.33151281]
[1730119457793,0.180924,69000.0,68999.0,0.33151281]
[1730119458648,0.180924,69000.0,68999.0,0.31751281]
[1730119458849,0.180924,69000.0,68999.0,0.30351281]
[1730119459059,0.180924,69000.0,68999.0,0.18358381]
[1730119459485,0.180924,69000.0,68999.0,0.32851281]
[1730119463432,0.077224,69000.0,68999.0,0.32851281]
[1730119463716,0.000824,69000.0,68999.0,0.32851281]
[1730119463928,0.000824,69000.0,68999.0,0.33313097]
[1730119464548,0.000824,69000.0,68999.0,0.31913097]
[1730119464754,0.000824,69000.0,68999.0,0.30813097]
[1730119465013,0.000824,69000.0,68999.0,0.35113097]
[1730119465251,0.000824,69000.0,68999.0,0.74827885]
[1730119465454,0.000824,69000.0,68999.0,0.68353886]
[1730119465667,0.000824,69000.0,68999.0,0.67692891]
[1730119465886,0.000824,69000.0,68999.0,0.79873284]
[1730119466109,0.000824,69000.0,68999.0,0.81273284]
[1730119466368,0.000824,69002.0,69001.0,0.170005]
[1730119466609,0.000824,69002.0,69001.0,0.6539989]
[1730119466828,0.000824,69002.0,69001.0,0.32512697]
[1730119467053,0.000824,69002.0,69001.0,0.32050881]
[1730119467274,0.000824,69002.0,69001.0,0.32512554]
[1730119467486,0.000824,69002.0,69001.0,0.33251104]
[1730119467963,0.000824,69002.0,69001.0,0.34651104]
[1730119468380,0.000824,69002.0,69001.0,0.51618665]
[1730119468598,0.000824,69002.0,69001.0,0.7653822]
[1730119468813,0.000824,69002.0,69001.0,0.7513822]
[1730119469030,0.000824,69002.0,69001.0,0.81030766]
[1730119469654,0.000824,69002.0,69001.0,0.64063205]
[1730119470510,0.000824,69002.0,69001.0,0.43651104]
[1730119470718,0.000824,69002.0,69001.0,0.43451104]
[1730119471125,0.000824,69002.0,69001.0,0.42450881]
[1730119471330,0.000824,69002.0,69001.0,0.43649418]
[1730119472552,0.000824,69002.0,69001.0,0.42911816]
[1730119473524,0.000824,69002.0,69001.0,0.58836382]
[1730119474872,0.000824,69002.0,69001.0,0.5883616]
[1730119475615,0.000824,69002.0,69001.0,0.5103616]
[1730119475832,0.000824,69002.0,69001.0,0.5003616]
[1730119476039,0.000824,69002.0,69001.0,0.34111594]
[1730119476246,0.000824,69002.0,69001.0,0.35111594]
[1730119476462,0.000824,69002.0,69001.0,0.35311594]
[1730119476879,0.000824,69002.0,69001.0,0.57179874]
[1730119477100,0.000824,69002.0,69001.0,0.35311594]
[1730119478655,0.000824,69002.0,69001.0,0.51225867]
[1730119479264,0.000824,69002.0,69001.0,0.57692305]
[1730119479681,0.000824,69002.0,69001.0,0.41778032]
[1730119480859,0.000824,69002.0,69001.0,0.41777886]
[1730119481282,0.000824,69002.0,69001.0,0.35311448]
[1730119482678,0.000824,69002.0,69001.0,0.35111448]
[1730119483009,0.000824,69002.0,68998.0,0.26325288]
[1730119483010,0.000824,69002.0,68988.0,0.058006]
[1730119483011,0.005,68989.0,68988.0,0.058006]
[1730119483180,0.005,68989.0,68986.0,0.14527759]
[1730119483181,0.25,68992.0,68986.0,0.05907345]
[1730119483182,0.404954,68987.0,68986.0,0.05907345]
[1730119483302,0.323254,68987.0,68986.0,0.05907345]
[1730119483522,0.18506736,68987.0,68986.0,0.05907345]
[1730119483732,0.18506736,68987.0,68986.0,0.06399345]
[1730119483939,0.00676736,68987.0,68986.0,0.06399345]
[1730119484134,0.365669,68997.0,68986.0,0.06399345]
[1730119484135,0.144948,68990.0,68986.0,0.06399345]
[1730119484350,0.0758,68997.0,68988.0,0.014]
[1730119484577,0.0072778,68989.0,68988.0,0.014]
[1730119484784,0.14495,68989.0,68988.0,0.014]
[1730119484997,0.1522278,68989.0,68988.0,0.014]
[1730119485208,0.0072778,68989.0,68987.0,0.00492]
[1730119485447,0.289896,68991.0,68987.0,0.00492]
[1730119485656,0.00727793,68990.0,68987.0,0.00492]
[1730119486068,0.144949,68990.0,68987.0,0.00492]
[1730119486288,0.02271148,68992.0,68991.0,0.00492]
[1730119486726,0.144936,68996.0,68991.0,0.00492]
[1730119487330,0.144935,68996.0,68991.0,0.00492]
[1730119487552,0.434815,68995.0,68991.0,0.00492]
[1730119487770,0.001,68992.0,68991.0,0.01892]
[1730119488225,0.145944,68992.0,68991.0,0.006]
[1730119488439,0.145944,68992.0,68991.0,0.02]
[1730119488847,0.001,68992.0,68991.0,0.02]
[1730119489493,0.145944,68992.0,68991.0,0.014]
[1730119489714,0.145944,68992.0,68991.0,0.018]
[1730119489925,0.16865575,68992.0,68991.0,0.018]
[1730119490143,0.16765575,68992.0,68991.0,0.004]
[1730119490356,0.17474347,68992.0,68991.0,0.004]
[1730119490648,0.17574347,68992.0,68991.0,0.012]
[1730119490774,0.15303172,68992.0,68991.0,0.012]
[1730119491874,0.15203172,68992.0,68991.0,0.004]
[1730119492098,0.15203172,68992.0,68991.0,0.012]
[1730119492306,0.15303172,68992.0,68991.0,0.008]
[1730119492735,0.15303172,68992.0,68991.0,0.012]
[1730119493195,0.15303172,68992.0,68991.0,0.008]
[1730119493400,0.144949,68990.0,68987.0,0.00492]
[1730119493824,0.00708732,68989.0,68987.0,0.00492]
[1730119494740,0.001,68992.0,68987.0,0.00492]
[1730119494970,0.00708719,68988.0,68987.0,0.01892]
[1730119495188,0.289876,68995.0,68987.0,0.00492]
[1730119495422,0.144944,68992.0,68991.0,0.001646]
[1730119496530,0.144942,68993.0,68991.0,0.001646]
[1730119496729,0.144944,68992.0,68991.0,0.003646]
[1730119497611,0.144944,68992.0,68991.0,0.001646]
[1730119498023,0.144944,68992.0,68991.0,0.014646]
[1730119498024,0.145944,68992.0,68991.0,0.014646]
[1730119499540,0.145944,68992.0,68991.0,0.016646]
[1730119499891,0.145944,68992.0,68991.0,0.014646]
[1730119500337,0.145944,68992.0,68991.0,0.016646]
[1730119502295,0.40077001,68992.0,68991.0,0.016646]
[1730119502457,0.37160188,68992.0,68991.0,0.016646]
[1730119502660,0.50621961,68992.0,68991.0,0.016646]
[1730119502878,0.51121961,68992.0,68991.0,0.016646]
[1730119505062,0.66172342,68992.0,68991.0,0.016646]
[1730119505512,0.6685802,68992.0,68991.0,0.016646]
[1730119505750,0.81908401,68992.0,68991.0,0.016646]
[1730119506016,0.81908401,68992.0,68991.0,0.014646]
[1730119506464,0.6685802,68992.0,68991.0,0.016646]
[1730119506665,0.34340078,68992.0,68991.0,0.016646]
[1730119506884,0.00685678,68992.0,68991.0,0.006566]
[1730119507071,0.005,68998.0,68991.0,0.006566]
[1730119507303,0.289878,68995.0,68991.0,0.006566]
[1730119507558,0.01,68992.0,68991.0,0.020566]
[1730119507940,0.009,68992.0,68991.0,0.007566]
[1730119508509,0.144942,68993.0,68991.0,0.019566]
[1730119508745,0.144939,68995.0,68991.0,0.006566]
[1730119508979,0.02271088,68992.0,68991.0,0.153512]
[1730119509201,0.02271088,68992.0,68991.0,0.008566]
[1730119509426,0.02271088,68992.0,68991.0,0.15706981]
[1730119509648,0.02271088,68992.0,68991.0,0.30201581]
[1730119509879,0.02271088,68992.0,68991.0,0.30801581]
[1730119510087,0.09521088,68992.0,68991.0,0.30801581]
[1730119510299,0.0735,68992.0,68991.0,0.32201581]
[1730119510512,0.0725,68992.0,68991.0,0.30201581]
[1730119510936,0.0735,68992.0,68991.0,0.32061685]
[1730119511549,0.0735,68992.0,68991.0,0.30661685]
[1730119511757,0.0725,68992.0,68991.0,0.30661685]
[1730119511965,0.0745,68992.0,68991.0,0.32761685]
[1730119512406,0.0735,68992.0,68991.0,0.17567085]
[1730119512820,0.0745,68992.0,68991.0,0.18967085]
[1730119513562,0.0745,68992.0,68991.0,0.034566]
[1730119513943,0.0745,68992.0,68991.0,0.33001581]
[1730119514189,0.0745,68992.0,68991.0,0.33462599]
[1730119515676,0.0745,68992.0,68991.0,0.33001581]
[1730119516289,0.0745,68992.0,68991.0,0.18506981]
[1730119517103,0.0745,68992.0,68991.0,0.18967913]
[1730119517555,0.0745,68992.0,68991.0,0.33462513]
[1730119518435,0.0745,68992.0,68991.0,0.33001581]
[1730119519082,0.075323,68992.0,68991.0,0.33001581]
[1730119519556,0.075323,68992.0,68991.0,0.41341581]
[1730119520036,0.075323,68992.0,68991.0,0.41541581]
[1730119520767,0.075323,68992.0,68991.0,0.42541581]
[1730119521006,0.000823,68996.0,68995.0,0.02192]
[1730119521325,0.000823,68996.0,68995.0,0.61069467]
[1730119521535,0.000823,68996.0,68995.0,0.70489687]
[1730119522417,0.001823,68996.0,68995.0,0.71889687]
[1730119523280,0.002823,68996.0,68995.0,0.73289687]
[1730119523697,0.001823,68996.0,68995.0,0.71889687]
[1730119524136,0.001823,68996.0,68995.0,0.73289687]
[1730119524589,0.001823,68996.0,68995.0,0.73748999]
[1730119524804,0.000824,69002.0,69001.0,0.58239622]
[1730119525059,0.000824,69002.0,69001.0,0.66731754]
[1730119525266,0.000824,69002.0,69001.0,0.66931754]
[1730119526449,0.000824,69002.0,69001.0,0.68331754]
[1730119527762,0.000824,69002.0,69001.0,0.69731754]
[1730119527986,0.000824,69002.0,69001.0,0.73607699]
[1730119528862,0.000824,69002.0,69001.0,0.73407699]
[1730119529099,0.000824,69002.0,69001.0,0.72615699]
[1730119529319,0.000824,69002.0,69001.0,0.71548387]
[1730119529537,0.000824,69002.0,69001.0,0.7200638]
[1730119529739,0.000824,69002.0,69001.0,0.73406411]
[1730119529944,0.000824,69002.0,69001.0,0.73606411]
[1730119530190,0.000824,69002.0,69001.0,0.31892905]
[1730119530406,0.000824,69002.0,69001.0,0.32934881]
[1730119530796,0.000824,69002.0,69001.0,0.34334881]
[1730119531010,0.000824,69002.0,69001.0,0.32934881]
[1730119531223,0.000824,69002.0,69001.0,0.31434881]
[1730119531459,0.000824,69002.0,69001.0,0.18342381]
[1730119531728,0.000824,69002.0,69001.0,0.16450381]
[1730119531976,0.000824,69002.0,68991.0,0.001646]
[1730119531977,0.144944,68992.0,68991.0,0.001646]
[1730119532221,0.31461961,68992.0,68991.0,0.001646]
[1730119532443,0.3271719,68992.0,68991.0,0.001646]
[1730119533349,0.15749629,68992.0,68991.0,0.002646]
[1730119533582,0.01255229,68992.0,68991.0,0.007566]
[1730119533804,0.144944,68992.0,68991.0,0.007566]
[1730119534027,0.15728518,68992.0,68991.0,0.007566]
[1730119534732,0.15828518,68992.0,68991.0,0.016566]
[1730119534953,0.01334118,68992.0,68991.0,0.006566]
[1730119535181,0.15828518,68992.0,68991.0,0.016566]
[1730119535410,0.15928518,68992.0,68991.0,0.018566]
[1730119535655,0.15828518,68992.0,68991.0,0.006566]
[1730119535879,0.15828518,68992.0,68991.0,0.016566]
[1730119536101,0.15928518,68992.0,68991.0,0.018566]
[1730119536622,0.15928518,68992.0,68991.0,0.008566]
[1730119536851,0.15928518,68992.0,68991.0,0.015566]
[1730119537446,0.15728518,68992.0,68991.0,0.013566]
[1730119537684,0.15828518,68992.0,68991.0,0.027566]
[1730119538575,0.15728518,68992.0,68991.0,0.006566]
[1730119538775,0.15828518,68992.0,68991.0,0.020646]
[1730119539150,0.15828518,68992.0,68991.0,0.006646]
[1730119539391,0.18199486,68992.0,68991.0,0.012646]
[1730119539598,0.18199486,68992.0,68991.0,0.014646]
[1730119539871,0.15928518,68992.0,68991.0,0.014646]
[1730119540082,0.27914396,68992.0,68991.0,0.014646]
[1730119540236,0.15928518,68992.0,68991.0,0.014646]
[1730119541493,0.18199584,68992.0,68991.0,0.014646]
[1730119542114,0.18191284,68992.0,68991.0,0.014646]
[1730119543595,0.18191284,68992.0,68991.0,0.019566]
[1730119543799,0.01425818,68992.0,68991.0,0.164512]
[1730119544007,0.01425818,68992.0,68991.0,0.33737436]
[1730119544230,0.002,68992.0,68991.0,0.33737436]
[1730119545111,0.01428195,68992.0,68991.0,0.33737436]
[1730119545468,0.01428195,68992.0,68991.0,0.31501581]
[1730119546126,0.002,68992.0,68991.0,0.31501581]
[1730119546537,0.01430121,68992.0,68991.0,0.31501581]
[1730119547367,0.002,68992.0,68991.0,0.019566]
[1730119547587,0.15924521,68992.0,68991.0,0.019566]
[1730119547794,0.01430121,68992.0,68991.0,0.164512]
[1730119548434,0.01430121,68992.0,68991.0,0.31501581]
[1730119548655,0.002,68992.0,68991.0,0.31501581]
[1730119548863,0.002,68992.0,68991.0,0.32001581]
[1730119550397,0.002,68992.0,68991.0,0.31801581]
[1730119550606,0.01496,68993.0,68992.0,0.154864]
[1730119550844,0.01496,68993.0,68992.0,0.30536781]
[1730119551849,0.01496,68993.0,68992.0,0.39376615]
[1730119552048,0.01496,68993.0,68992.0,0.39286781]
[1730119552613,0.01496,68993.0,68992.0,0.39747398]
[1730119553703,0.01496,68993.0,68992.0,0.39547398]
[1730119553912,0.01496,68993.0,68992.0,0.42347398]
[1730119554326,0.01496,68993.0,68992.0,0.41886781]
[1730119554528,0.01496,68993.0,68992.0,0.40947438]
[1730119554722,0.01496,68993.0,68992.0,0.39747438]
[1730119554951,0.01496,68993.0,68992.0,0.42547438]
[1730119555168,0.01496,68993.0,68992.0,0.41147438]
[1730119555803,0.01496,68993.0,68992.0,0.42547538]
[1730119556007,0.015783,68993.0,68992.0,0.42547538]
[1730119556883,0.015783,68993.0,68992.0,0.42347538]
[1730119557109,0.015783,68993.0,68992.0,0.40947538]
[1730119557329,0.015783,68993.0,68992.0,0.42347538]
[1730119557534,0.015783,68993.0,68992.0,0.40947538]
[1730119557754,0.015783,68993.0,68992.0,0.33397538]
[1730119558471,0.015783,68993.0,68992.0,0.33797538]
[1730119558715,0.015783,68993.0,68992.0,0.33297538]
[1730119558944,0.015783,68993.0,68992.0,0.32836781]
[1730119559162,0.015783,68993.0,68992.0,0.33297538]
[1730119559343,0.02830776,68993.0,68992.0,0.32836781]
[1730119559577,0.02830776,68993.0,68992.0,0.33298285]
[1730119559801,0.015783,68993.0,68992.0,0.32836781]
[1730119560214,0.015783,68993.0,68992.0,0.31898285]
[1730119560623,0.015783,68993.0,68992.0,0.32736781]
[1730119560842,0.015783,68993.0,68992.0,0.33198285]
[1730119561069,0.015783,68993.0,68992.0,0.32298285]
[1730119561296,0.015783,68993.0,68992.0,0.31798285]
[1730119561523,0.015783,68993.0,68992.0,0.33698285]
[1730119561756,0.015783,68993.0,68992.0,0.33198285]
[1730119562408,0.015783,68993.0,68992.0,0.33698285]
[1730119562614,0.015783,68993.0,68992.0,0.33198285]
[1730119563481,0.015783,68993.0,68992.0,0.33698285]
[1730119564126,0.015783,68993.0,68992.0,0.34698285]
[1730119569718,0.015783,68993.0,68992.0,0.34698271]
[1730119571916,0.015783,68993.0,68992.0,0.33706271]
[1730119572136,0.015783,68993.0,68992.0,0.34698271]
[1730119572337,0.015783,68993.0,68992.0,0.35436761]
[1730119572549,0.015783,68993.0,68992.0,0.34698271]
[1730119572986,0.015783,68993.0,68992.0,0.35436761]
[1730119573188,0.015783,68993.0,68992.0,0.33936761]
[1730119573423,0.015783,68993.0,68992.0,0.33699034]
[1730119575127,0.015783,68993.0,68992.0,0.34199034]
[1730119575333,0.015783,68993.0,68992.0,0.35438745]
[1730119576165,0.015783,68993.0,68992.0,0.34438745]
[1730119576410,0.015783,68993.0,68992.0,0.33938745]
[1730119576616,0.015783,68993.0,68992.0,0.33199034]
[1730119577294,0.015783,68993.0,68992.0,0.33199551]
[1730119577716,0.015783,68993.0,68992.0,0.33199529]
[1730119578828,0.015783,68993.0,68992.0,0.33364129]
[1730119579274,0.02830085,68993.0,68992.0,0.33364129]
[1730119579490,0.015783,68993.0,68992.0,0.33364129]
[1730119579701,0.02830085,68993.0,68992.0,0.33364129]
[1730119579933,0.015783,68993.0,68992.0,0.33364129]
[1730119580138,0.02830085,68993.0,68992.0,0.33364129]
[1730119580364,0.015783,68993.0,68992.0,0.33364129]
[1730119580815,0.015783,68993.0,68992.0,0.32901381]
[1730119581021,0.015783,68993.0,68992.0,0.33364135]
[1730119581274,0.015783,68993.0,68992.0,0.33364133]
[1730119581743,0.015783,68993.0,68992.0,0.33864133]
[1730119583007,0.015783,68993.0,68992.0,0.33364133]
[1730119583840,0.015783,68993.0,68992.0,0.32901381]
[1730119584000,0.015783,68993.0,68992.0,0.34104737]
[1730119586858,0.015783,68993.0,68992.0,0.34105093]
[1730119587529,0.015783,68993.0,68992.0,0.34105311]
[1730119590577,0.015783,68993.0,68992.0,0.34605311]
[1730119590792,0.015783,68993.0,68992.0,0.34605504]
[1730119591013,0.015783,68993.0,68992.0,0.35605504]
[1730119591253,0.015783,68993.0,68992.0,0.43265504]
[1730119591477,0.015783,68993.0,68992.0,0.43465504]
[1730119591698,0.015783,68993.0,68992.0,0.47786357]
[1730119591937,0.015783,68993.0,68992.0,0.58596357]
[1730119592153,0.015783,68993.0,68992.0,0.75302095]
[1730119592355,0.015783,68993.0,68992.0,0.59356784]
[1730119592806,0.015783,68993.0,68992.0,0.58056784]
[1730119593256,0.015783,68993.0,68992.0,0.59456784]
[1730119593499,0.015783,68993.0,68992.0,0.59256784]
[1730119593695,0.015783,68993.0,68992.0,0.52775504]
[1730119593903,0.015783,68993.0,68992.0,0.52457409]
[1730119594119,0.015783,68993.0,68992.0,0.54175504]
[1730119594353,0.015783,68993.0,68992.0,0.34704835]
[1730119594778,0.015783,68993.0,68992.0,0.52672396]
[1730119595871,0.015783,68993.0,68992.0,0.52872396]
[1730119596309,0.015783,68993.0,68992.0,0.55775396]
[1730119596537,0.015783,68993.0,68992.0,0.52872396]
[1730119597146,0.015783,68993.0,68992.0,0.52672396]
[1730119597869,0.015783,68993.0,68992.0,0.51468942]
[1730119598090,0.015783,68993.0,68992.0,0.52672517]
[1730119601216,0.015783,68993.0,68992.0,0.34204956]
[1730119603140,0.015783,68993.0,68992.0,0.32804956]
[1730119603558,0.015783,68993.0,68992.0,0.34004956]
[1730119603768,0.015783,68993.0,68992.0,0.32604956]
[1730119603975,0.015783,68993.0,68992.0,0.34004956]
[1730119605316,0.015783,68993.0,68992.0,0.19510556]
[1730119605535,0.015783,68993.0,68992.0,0.33268446]
[1730119605981,0.02831069,68993.0,68992.0,0.33268446]
[1730119606383,0.015783,68993.0,68992.0,0.33268446]
[1730119607241,0.015783,68993.0,68992.0,0.18774046]
[1730119607465,0.17325269,68993.0,68992.0,0.03723665]
[1730119607672,0.17325269,68993.0,68992.0,0.032566]
[1730119608767,0.5322283,68993.0,68992.0,0.027646]
[1730119609388,0.5322283,68993.0,68992.0,0.015646]
[1730119610045,0.65442623,68993.0,68992.0,0.023646]
[1730119610258,0.677136,68993.0,68992.0,0.023646]
[1730119610480,0.63007441,68993.0,68992.0,0.023646]
[1730119610741,0.63007441,68993.0,68992.0,0.009646]
[1730119610968,0.63007441,68993.0,68992.0,0.011646]
[1730119611178,0.56493807,68993.0,68992.0,0.003646]
[1730119611392,0.56493807,68993.0,68992.0,0.001646]
[1730119611393,0.56693807,68993.0,68992.0,0.001646]
[1730119611615,0.61034314,68993.0,68992.0,0.001646]
[1730119611833,0.74555103,68993.0,68992.0,0.001646]
[1730119612073,0.70014596,68993.0,68992.0,0.001646]
[1730119612283,0.63604653,68993.0,68992.0,0.002646]
[1730119612521,1.11780597,68993.0,68992.0,0.002646]
[1730119612743,1.20661725,68993.0,68992.0,0.002646]
[1730119613204,1.20661725,68993.0,68991.0,0.001646]